fUST/lending_fUST_20240530
["ID","MTS","AMOUNT","RATE_DAILY","PERIOD"]
[328215402,1717066250458,-511.31219714,0.0003041,4]
[328215403,1717066250468,-546.06,0.0003041,4]
[328215404,1717066250477,-972.1,0.0003041,4]
[328215405,1717066250487,-500.0,0.0003041,4]
[328215406,1717066250495,-500.0,0.0003041,4]
[328215407,1717066250504,-500.0,0.0003041,4]
[328215408,1717066250513,-500.0,0.0003041,4]
[328215409,1717066250522,-500.0,0.0003041,4]
[328215410,1717066250532,-341.64002911,0.0003041,4]
[328215411,1717066250541,-500.0,0.0003041,4]
[328215412,1717066250551,-500.0,0.0003041,4]
[328215413,1717066250561,-500.0,0.0003041,4]
[328215414,1717066250572,-500.0,0.0003041,4]
[328215415,1717066250586,-352.47798162,0.0003041,4]
[328215416,1717066250596,-500.0,0.0003041,4]
[328215417,1717066250606,-500.0,0.0003041,4]
[328215418,1717066250615,-500.0,0.0003041,4]
[328215419,1717066250627,-500.0,0.0003041,4]
[328215420,1717066250636,-500.0,0.0003041,4]
[328215421,1717066250646,-500.0,0.0003041,2]
[328215422,1717066250655,-558.28643869,0.0003041,4]
[328215423,1717066250669,-513.97648449,0.0003041,4]
[328215424,1717066250678,-230.11827221,0.0003041,4]
[328215425,1717066250687,-628.51,0.0003041,4]
[328215426,1717066250696,-500.0,0.0003041,4]
[328215427,1717066250706,-562.95174839,0.0003041,4]
[328215428,1717066250717,-500.0,0.0003041,4]
[328215429,1717066250727,-500.0,0.0003041,4]
[328215430,1717066250737,-500.0,0.0003041,4]
[328215431,1717066250747,-507.79740284,0.0003041,4]
[328215432,1717066250757,-500.0,0.0003041,4]
[328215433,1717066250765,-306.0,0.00030591,2]
[328215434,1717066250774,-603.33633004,0.0003061,7]
[328215435,1717066250783,-510.24311475,0.00030684,4]
[328215436,1717066250793,-500.0,0.00030684,4]
[328215437,1717066250802,-500.0,0.00030684,9]
[328215438,1717066250811,-307.70647929,0.00030684,4]
[328215439,1717066250821,-203.37223295,0.00030684,4]
[328215440,1717066250831,-500.0,0.00030684,4]
[328215441,1717066250840,-500.0,0.00030684,4]
[328215442,1717066250851,-536.07166473,0.00030684,4]
[328215443,1717066250861,-500.0,0.00030684,4]
[328215444,1717066250872,-799.15,0.00030684,4]
[328215445,1717066250881,-508.43622218,0.00030684,4]
[328215446,1717066250890,-500.0,0.00030684,4]
[328215447,1717066250900,-500.0,0.00030684,4]
[328215448,1717066250910,-500.0,0.00030684,4]
[328215449,1717066250918,-500.0,0.00030684,4]
[328215450,1717066250927,-500.0,0.00030684,4]
[328215451,1717066250938,-494.31113047,0.00030684,4]
[328215452,1717066250947,-500.0,0.00030684,4]
[328215453,1717066250956,-500.0,0.00030684,4]
[328215454,1717066250965,-500.0,0.00030684,4]
[328215455,1717066250974,-500.0,0.00030684,4]
[328215456,1717066250983,-500.0,0.00030684,4]
[328215457,1717066250993,-500.0,0.00030684,4]
[328215458,1717066251002,-500.0,0.00030684,2]
[328215459,1717066251011,-505.97625784,0.00030684,4]
[328215460,1717066251021,-500.0,0.00030684,4]
[328215461,1717066251030,-500.0,0.00030684,4]
[328215462,1717066251040,-500.0,0.00030684,4]
[328215463,1717066251050,-500.0,0.00030684,4]
[328215464,1717066251059,-500.0,0.00030684,4]
[328215465,1717066251068,-500.0,0.00030684,4]
[328215466,1717066251078,-585.01136575,0.00030684,4]
[328215467,1717066251086,-500.0,0.00030684,4]
[328215468,1717066251096,-500.0,0.00030684,4]
[328215469,1717066251105,-532.92438726,0.00030684,4]
[328215470,1717066251116,-318.74777176,0.00030684,4]
[328215471,1717066251126,-510.64738684,0.00030684,4]
[328215472,1717066251135,-500.0,0.00030684,4]
[328215473,1717066251146,-500.0,0.00030684,4]
[328215474,1717066251155,-500.0,0.00030684,2]
[328215475,1717066251165,-547.1715068,0.00030684,4]
[328215476,1717066251181,-500.0,0.00030684,4]
[328215477,1717066251194,-574.75141666,0.00030684,4]
[328215478,1717066251203,-507.83120173,0.00030684,4]
[328215479,1717066251213,-187.38906641,0.00030684,4]
[328215480,1717066251223,-286.45755,0.00030684,2]
[328215481,1717066251233,-477.1560055,0.00030684,4]
[328215482,1717066251243,-286.45755,0.00030684,2]
[328215483,1717066251252,-500.0,0.00030684,4]
[328215484,1717066251262,-351.1121529,0.00030684,4]
[328215485,1717066251272,-500.0,0.00030684,4]
[328215486,1717066251282,-500.0,0.00030684,4]
[328215487,1717066251292,-500.0,0.00030684,4]
[328215488,1717066251302,-853.12,0.00030684,4]
[328215489,1717066251312,-1739.8,0.00030684,4]
[328215490,1717066251322,-183.79287546,0.00030684,4]
[328215491,1717066251331,-500.0,0.00030684,4]
[328215492,1717066251341,-500.0,0.00030684,4]
[328215493,1717066251351,-500.0,0.00030684,4]
[328215494,1717066251361,-500.0,0.00030684,4]
[328215495,1717066251371,-500.0,0.00030684,4]
[328215496,1717066251381,-583.16954551,0.00030684,4]
[328215497,1717066251391,-500.0,0.00030684,4]
[328215498,1717066251535,-514.00235445,0.00030684,4]
[328215499,1717066251546,-2085.04,0.00030684,4]
[328215500,1717066251555,-512.05304656,0.00030684,4]
[328215501,1717066251564,-500.0,0.00030684,4]
[328215502,1717066251573,-1000.0,0.00030684,4]
[328215503,1717066251583,-587.32457878,0.00030684,4]
[328215504,1717066251596,-500.0,0.00030684,4]
[328215505,1717066251605,-500.0,0.00030684,4]
[328215506,1717066251614,-500.0,0.00030684,4]
[328215507,1717066251625,-500.0,0.00030684,4]
[328215508,1717066251633,-500.0,0.00030684,4]
[328215509,1717066251643,-598.69296861,0.00030684,4]
[328215510,1717066251655,-510.80093029,0.00030684,4]
[328215511,1717066251666,-500.0,0.00030684,2]
[328215512,1717066251676,-474.45760693,0.00030684,2]
[328215513,1717066251685,-505.06650642,0.00030684,4]
[328215514,1717066251694,-500.0,0.00030684,4]
[328215515,1717066251704,-500.0,0.00030684,4]
[328215516,1717066251713,-500.0,0.00030684,4]
[328215517,1717066251723,-500.0,0.00030684,4]
[328215518,1717066251732,-500.0,0.00030684,4]
[328215519,1717066251741,-500.0,0.00030684,4]
[328215520,1717066251751,-2108.12,0.00030684,4]
[328215521,1717066251760,-500.0,0.00030684,4]
[328215522,1717066251769,-598.22745565,0.00030684,4]
[328215523,1717066251778,-220.08621539,0.00030684,4]
[328215524,1717066251787,-546.06,0.00030684,4]
[328215525,1717066251796,-972.1,0.00030684,4]
[328215526,1717066251806,-500.0,0.00030684,4]
[328215527,1717066251816,-500.0,0.00030684,4]
[328215528,1717066251825,-500.0,0.00030684,4]
[328215529,1717066251834,-500.0,0.00030684,4]
[328215530,1717066251844,-500.0,0.00030684,4]
[328215531,1717066251854,-511.25208065,0.00030684,4]
[328215532,1717066251863,-500.0,0.00030684,4]
[328215533,1717066251873,-500.0,0.00030684,4]
[328215534,1717066251883,-500.0,0.00030684,4]
[328215535,1717066251892,-461.64808803,0.00030684,4]
[328215536,1717066251903,-500.0,0.00030684,4]
[328215537,1717066251912,-500.0,0.00030684,4]
[328215538,1717066251922,-500.0,0.00030684,4]
[328215539,1717066251930,-511.01980719,0.00030684,4]
[328215540,1717066251940,-206.42516605,0.00030684,2]
[328215541,1717066251949,-628.51,0.00030684,4]
[328215542,1717066251958,-483.59628484,0.00030684,4]
[328215543,1717066251968,-500.0,0.00030684,4]
[328215544,1717066251977,-500.0,0.00030684,4]
[328215545,1717066251986,-500.0,0.00030684,4]
[328215546,1717066251995,-500.0,0.00030684,4]
[328215547,1717066252004,-153.0,0.0003074,2]
[328215548,1717066252013,-160.45,0.000308,3]
[328215549,1717066252023,-204.7749955,0.00030845,2]
[328215550,1717066252033,-392.86,0.0003089,2]
[328215551,1717066252043,-206.84755032,0.00030958,4]
[328215552,1717066252052,-567.13160418,0.00030958,10]
[328215553,1717066252061,-500.0,0.00030958,4]
[328215554,1717066252071,-188.57338036,0.00030958,4]
[328215555,1717066252080,-500.0,0.00030958,4]
[328215556,1717066252089,-799.15,0.00030958,4]
[328215557,1717066252097,-587.26490887,0.00030958,4]
[328215558,1717066252106,-500.0,0.00030958,4]
[328215559,1717066252115,-223.73492347,0.00030958,4]
[328215560,1717066252124,-500.0,0.00030958,4]
[328215561,1717066252133,-307.58888846,0.00030958,4]
[328215562,1717066252142,-500.0,0.00030958,4]
[328215563,1717066252153,-500.0,0.00030958,4]
[328215564,1717066252162,-500.0,0.00030958,4]
[328215565,1717066252171,-500.0,0.00030958,4]
[328215566,1717066252180,-511.70721265,0.00030958,4]
[328215567,1717066252189,-500.0,0.00030958,4]
[328215568,1717066252198,-500.0,0.00030958,2]
[328215569,1717066252207,-626.59357816,0.00030958,4]
[328215570,1717066252216,-500.0,0.00030958,4]
[328215571,1717066252225,-500.0,0.00030958,4]
[328215572,1717066252234,-500.0,0.00030958,4]
[328215573,1717066252243,-484.40247429,0.00030958,4]
[328215574,1717066252252,-500.0,0.00030958,4]
[328215575,1717066252261,-500.0,0.00030958,4]
[328215576,1717066252271,-500.0,0.00030958,4]
[328215577,1717066252280,-500.0,0.00030958,4]
[328215578,1717066252289,-500.0,0.00030958,4]
[328215579,1717066252298,-513.44197368,0.00030958,2]
[328215580,1717066252307,-500.0,0.00030958,4]
[328215581,1717066252316,-500.0,0.00030958,4]
[328215582,1717066252326,-318.67001558,0.00030958,4]
[328215583,1717066252335,-500.0,0.00030958,4]
[328215584,1717066252344,-500.0,0.00030958,4]
[328215585,1717066252353,-853.12,0.00030958,4]
[328215586,1717066252362,-1739.8,0.00030958,4]
[328215587,1717066252371,-500.0,0.00030958,4]
[328215588,1717066252380,-176.82326025,0.00030958,4]
[328215589,1717066252390,-500.0,0.00030958,4]
[328215590,1717066252400,-500.0,0.00030958,4]
[328215591,1717066252409,-500.0,0.00030958,4]
[328215592,1717066252419,-588.90120419,0.00030958,4]
[328215593,1717066252428,-2085.04,0.00030958,4]
[328215594,1717066252438,-500.0,0.00030958,4]
[328215595,1717066252447,-1000.0,0.00030958,4]
[328215596,1717066252456,-500.0,0.00030958,4]
[328215597,1717066252465,-500.0,0.00030958,4]
[328215598,1717066252474,-340.74556812,0.00030958,4]
[328215599,1717066252482,-500.0,0.00030958,4]
[328215600,1717066252490,-200.71809079,0.00030958,4]
[328215601,1717066252499,-500.0,0.00030958,2]
[328215602,1717066252508,-500.0,0.00030958,4]
[328215603,1717066252517,-500.0,0.00030958,4]
[328215604,1717066252526,-344.73580038,0.00030958,4]
[328215605,1717066252535,-500.0,0.00030958,4]
[328215606,1717066252543,-354.44767176,0.00030958,4]
[328215607,1717066252553,-500.0,0.00030958,4]
[328215608,1717066252561,-2108.12,0.00030958,4]
[328215609,1717066252571,-500.0,0.00030958,4]
[328215610,1717066252583,-546.06,0.00030958,4]
[328215611,1717066252592,-972.1,0.00030958,4]
[328215612,1717066252602,-500.0,0.00030958,4]
[328215613,1717066252611,-500.0,0.00030958,4]
[328215614,1717066252619,-500.0,0.00030958,4]
[328215615,1717066252630,-500.0,0.00030958,4]
[328215616,1717066252640,-500.0,0.00030958,4]
[328215617,1717066252649,-384.53052907,0.00030958,4]
[328215618,1717066252659,-500.0,0.00030958,4]
[328215619,1717066252669,-500.0,0.00030958,4]
[328215620,1717066252678,-500.0,0.00030958,4]
[328215621,1717066252686,-500.0,0.00030958,4]
[328215622,1717066252696,-500.0,0.00030958,4]
[328215623,1717066252705,-628.51,0.00030958,4]
[328215624,1717066252714,-500.0,0.00030958,4]
[328215625,1717066252723,-500.0,0.00030958,4]
[328215626,1717066252732,-500.0,0.00030958,4]
[328215627,1717066252741,-500.0,0.00030958,4]
[328215628,1717066252750,-204.8553096,0.00030959,2]
[328215629,1717066252759,-2500.0,0.00031,2]
[328215630,1717066252768,-300.0,0.00031,4]
[328215631,1717066252776,-322.64319578,0.00031088,7]
[328215632,1717066252785,-166.81042853,0.00031124,4]
[328215633,1717066252795,-2605.68261764,0.00031162,10]
[328215634,1717066252804,-322.64319578,0.00031213,7]
[328215635,1717066252812,-184.70819066,0.00031232,4]
[328215636,1717066252821,-551.83799275,0.00031232,4]
[328215637,1717066252830,-799.15,0.00031232,4]
[328215638,1717066252838,-503.57542782,0.00031232,4]
[328215639,1717066252848,-500.0,0.00031232,4]
[328215640,1717066252856,-500.0,0.00031232,4]
[328215641,1717066252865,-500.0,0.00031232,4]
[328215642,1717066252875,-500.0,0.00031232,4]
[328215643,1717066252884,-418.35211982,0.00031232,4]
[328215644,1717066252893,-500.0,0.00031232,4]
[328215645,1717066252904,-500.0,0.00031232,2]
[328215646,1717066252913,-230.09662674,0.00031232,4]
[328215647,1717066252922,-562.15961489,0.00031232,4]
[328215648,1717066252931,-540.0264685,0.00031232,4]
[328215649,1717066252940,-500.0,0.00031232,4]
[328215650,1717066252949,-500.0,0.00031232,4]
[328215651,1717066252958,-254.1066227,0.00031232,4]
[328215652,1717066252966,-420.63260674,0.00031232,4]
[328215653,1717066252976,-500.0,0.00031232,4]
[328215654,1717066252985,-578.61981265,0.00031232,4]
[328215655,1717066252994,-286.45755,0.00031232,2]
[328215656,1717066253003,-286.457544,0.00031232,2]
[328215657,1717066253011,-500.0,0.00031232,4]
[328215658,1717066253020,-500.0,0.00031232,4]
[328215659,1717066253029,-478.71209517,0.00031232,4]
[328215660,1717066253038,-853.12,0.00031232,4]
[328215661,1717066253047,-1739.8,0.00031232,4]
[328215662,1717066253056,-500.0,0.00031232,4]
[328215663,1717066253065,-500.0,0.00031232,4]
[328215664,1717066253074,-500.0,0.00031232,4]
[328215665,1717066253083,-500.0,0.00031232,4]
[328215666,1717066253092,-2085.04,0.00031232,4]
[328215667,1717066253100,-500.0,0.00031232,4]
[328215668,1717066253108,-1000.0,0.00031232,4]
[328215669,1717066253117,-231.58295362,0.00031232,4]
[328215670,1717066253126,-500.0,0.00031232,4]
[328215671,1717066253135,-500.0,0.00031232,4]
[328215672,1717066253144,-500.0,0.00031232,2]
[328215673,1717066253155,-500.0,0.00031232,4]
[328215674,1717066253164,-500.0,0.00031232,4]
[328215675,1717066253173,-500.0,0.00031232,4]
[328215676,1717066253182,-292.86104791,0.00031232,4]
[328215677,1717066253191,-2108.12,0.00031232,4]
[328215678,1717066253201,-500.0,0.00031232,4]
[328215679,1717066253211,-546.06,0.00031232,4]
[328215680,1717066253220,-972.1,0.00031232,4]
[328215681,1717066253230,-500.0,0.00031232,4]
[328215682,1717066253239,-500.0,0.00031232,4]
[328215683,1717066253249,-500.0,0.00031232,4]
[328215684,1717066253259,-500.0,0.00031232,4]
[328215685,1717066253268,-500.0,0.00031232,4]
[328215686,1717066253277,-500.0,0.00031232,4]
[328215687,1717066253286,-500.0,0.00031232,4]
[328215688,1717066253296,-500.0,0.00031232,4]
[328215689,1717066253305,-553.06351105,0.00031232,4]
[328215690,1717066253314,-500.0,0.00031232,4]
[328215691,1717066253323,-628.51,0.00031232,4]
[328215692,1717066253333,-500.0,0.00031232,4]
[328215693,1717066253342,-500.0,0.00031232,4]
[328215694,1717066253351,-500.0,0.00031232,4]
[328215695,1717066253360,-500.0,0.00031232,4]
[328215696,1717066253369,-322.64319578,0.00031306,7]
[328215697,1717066253379,-322.64319578,0.00031336,7]
[328215698,1717066253388,-1206.67266007,0.00031385,30]
[328215699,1717066253399,-795.34918113,0.00031475,7]
[328215700,1717066253408,-795.34918113,0.00031485,7]
[328215701,1717066253417,-1367.06083419,0.000315,4]
[328215702,1717066253426,-799.15,0.00031506,4]
[328215703,1717066253435,-500.0,0.00031506,4]
[328215704,1717066253444,-165.45100204,0.00031506,4]
[328215705,1717066253453,-500.0,0.00031506,4]
[328215706,1717066253462,-604.92842127,0.00031506,4]
[328215707,1717066253471,-591.21996287,0.00031506,4]
[328215708,1717066253480,-500.0,0.00031506,2]
[328215709,1717066253489,-364.02285766,0.00031506,4]
[328215710,1717066253498,-500.0,0.00031506,4]
[328215711,1717066253507,-500.0,0.00031506,4]
[328215712,1717066253516,-500.0,0.00031506,4]
[328215713,1717066253525,-500.0,0.00031506,4]
[328215714,1717066253534,-853.12,0.00031506,4]
[328215715,1717066253626,-1739.8,0.00031506,4]
[328215716,1717066253637,-357.42047963,0.00031506,4]
[328215717,1717066253648,-180.44015493,0.00031506,4]
[328215718,1717066253657,-500.0,0.00031506,4]
[328215719,1717066253670,-500.0,0.00031506,4]
[328215720,1717066253680,-2085.04,0.00031506,4]
[328215721,1717066253689,-500.0,0.00031506,4]
[328215722,1717066253698,-1000.0,0.00031506,4]
[328215723,1717066253707,-500.0,0.00031506,4]
[328215724,1717066253716,-500.0,0.00031506,4]
[328215725,1717066253725,-512.99663348,0.00031506,2]
[328215726,1717066253734,-500.0,0.00031506,4]
[328215727,1717066253744,-284.74467622,0.00031506,4]
[328215728,1717066253753,-500.0,0.00031506,4]
[328215729,1717066253761,-2108.12,0.00031506,4]
[328215730,1717066253771,-500.0,0.00031506,4]
[328215731,1717066253780,-546.06,0.00031506,4]
[328215732,1717066253789,-972.1,0.00031506,4]
[328215733,1717066253798,-500.0,0.00031506,4]
[328215734,1717066253807,-500.0,0.00031506,4]
[328215735,1717066253816,-331.04498994,0.00031506,4]
[328215736,1717066253825,-467.32832732,0.00031506,4]
[328215737,1717066253834,-500.0,0.00031506,4]
[328215738,1717066253843,-434.38876497,0.00031506,4]
[328215739,1717066253852,-460.45790598,0.00031506,4]
[328215740,1717066253861,-578.57794362,0.00031506,4]
[328215741,1717066253870,-500.0,0.00031506,4]
[328215742,1717066253879,-628.51,0.00031506,4]
[328215743,1717066253888,-500.0,0.00031506,4]
[328215744,1717066253898,-462.84932859,0.00031506,4]
[328215745,1717066253907,-500.0,0.00031506,4]
[328215746,1717066253916,-239.1065009,0.00031506,4]
[328215747,1717066253925,-795.34918113,0.00031577,7]
[328215748,1717066253934,-322.64319578,0.00031667,7]
[328215749,1717066253943,-795.34918113,0.00031678,7]
[328215750,1717066253952,-322.64319578,0.00031689,7]
[328215751,1717066253962,-795.34918113,0.00031694,7]
[328215752,1717066253971,-322.64319578,0.00031717,7]
[328215753,1717066253980,-322.64319578,0.00031719,7]
[328215754,1717066253989,-799.15,0.0003178,4]
[328215755,1717066253998,-500.0,0.0003178,4]
[328215756,1717066254007,-500.0,0.0003178,4]
[328215757,1717066254016,-500.0,0.0003178,2]
[328215758,1717066254025,-500.0,0.0003178,4]
[328215759,1717066254035,-470.79207388,0.0003178,4]
[328215760,1717066254044,-500.0,0.0003178,4]
[328215761,1717066254053,-500.0,0.0003178,4]
[328215762,1717066254063,-853.12,0.0003178,4]
[328215763,1717066254072,-1739.8,0.0003178,4]
[328215764,1717066254081,-500.0,0.0003178,4]
[328215765,1717066254091,-500.0,0.0003178,4]
[328215766,1717066254100,-2085.04,0.0003178,4]
[328215767,1717066254110,-500.0,0.0003178,4]
[328215768,1717066254120,-1000.0,0.0003178,4]
[328215769,1717066254129,-500.0,0.0003178,4]
[328215770,1717066254139,-500.0,0.0003178,4]
[328215771,1717066254149,-596.146912,0.0003178,4]
[328215772,1717066254158,-500.0,0.0003178,4]
[328215773,1717066254167,-2108.12,0.0003178,4]
[328215774,1717066254177,-500.0,0.0003178,4]
[328215775,1717066254186,-546.06,0.0003178,4]
[328215776,1717066254196,-972.1,0.0003178,4]
[328215777,1717066254206,-500.0,0.0003178,4]
[328215778,1717066254216,-500.0,0.0003178,4]
[328215779,1717066254225,-500.0,0.0003178,4]
[328215780,1717066254235,-500.0,0.0003178,4]
[328215781,1717066254244,-628.51,0.0003178,4]
[328215782,1717066254254,-500.0,0.0003178,4]
[328215783,1717066254264,-500.0,0.0003178,4]
[328215784,1717066254274,-2433.30527649,0.000318,3]
[328215785,1717066254283,-3029.99906207,0.000318,3]
[328215786,1717066254292,-322.64319578,0.00031833,7]
[328215787,1717066254303,-795.34918113,0.00031838,7]
[328215788,1717066254312,-322.64319578,0.00031841,7]
[328215789,1717066254321,-322.64319578,0.00031856,7]
[328215790,1717066254331,-795.34918113,0.00031945,7]
[328215791,1717066254341,-1000.65150094,0.00032,2]
[328215792,1717066254350,-449.01034019,0.00032,4]
[328215793,1717066254359,-300.0,0.00032,5]
[328215794,1717066254369,-500.26894592,0.00032,2]
[328215795,1717066254378,-44078.58731347,0.00032,2]
[328215796,1717066254388,-799.15,0.00032054,4]
[328215797,1717066254398,-500.0,0.00032054,4]
[328215798,1717066254407,-500.0,0.00032054,4]
[328215799,1717066254416,-500.0,0.00032054,2]
[328215800,1717066254425,-500.0,0.00032054,4]
[328215801,1717066254435,-500.0,0.00032054,4]
[328215802,1717066254444,-500.0,0.00032054,4]
[328215803,1717066254454,-853.12,0.00032054,4]
[328215804,1717066254463,-1739.8,0.00032054,4]
[328215805,1717066254473,-500.0,0.00032054,4]
[328215806,1717066254482,-500.0,0.00032054,4]
[328215807,1717066254492,-2085.04,0.00032054,4]
[328215808,1717066254501,-500.0,0.00032054,4]
[328215809,1717066254510,-1000.0,0.00032054,4]
[328215810,1717066254520,-500.0,0.00032054,4]
[328215811,1717066254529,-500.0,0.00032054,4]
[328215812,1717066254538,-500.0,0.00032054,4]
[328215813,1717066254548,-2108.12,0.00032054,4]
[328215814,1717066254557,-500.0,0.00032054,4]
[328215815,1717066254566,-546.06,0.00032054,4]
[328215816,1717066254576,-972.1,0.00032054,4]
[328215817,1717066254588,-500.0,0.00032054,4]
[328215818,1717066254597,-500.0,0.00032054,4]
[328215819,1717066254607,-500.0,0.00032054,4]
[328215820,1717066254616,-493.19274621,0.00032054,4]
[328215821,1717066254627,-628.51,0.00032054,4]
[328215822,1717066254637,-500.0,0.00032054,4]
[328215823,1717066254646,-500.0,0.00032054,4]
[328215824,1717066254657,-795.34918113,0.00032218,7]
[328215825,1717066254668,-795.34918113,0.00032231,7]
[328215826,1717066254678,-322.64319578,0.00032234,7]
[328215827,1717066254687,-322.64319578,0.00032245,7]
[328215828,1717066254696,-795.34918113,0.00032268,7]
[328215829,1717066254705,-282.0,0.000323,5]
[328215830,1717066254714,-799.15,0.00032328,4]
[328215831,1717066254724,-184.85218183,0.00032328,4]
[328215832,1717066254733,-500.0,0.00032328,4]
[328215833,1717066254742,-500.0,0.00032328,2]
[328215834,1717066254752,-500.0,0.00032328,4]
[328215835,1717066254760,-500.0,0.00032328,4]
[328215836,1717066254769,-500.0,0.00032328,4]
[328215837,1717066254778,-853.12,0.00032328,4]
[328215838,1717066254787,-1739.8,0.00032328,4]
[328215839,1717066254797,-500.0,0.00032328,4]
[328215840,1717066254806,-500.0,0.00032328,4]
[328215841,1717066254815,-2085.04,0.00032328,4]
[328215842,1717066254824,-519.51458945,0.00032328,4]
[328215843,1717066254833,-1018.0917798,0.00032328,4]
[328215844,1717066254842,-500.0,0.00032328,4]
[328215845,1717066254851,-500.0,0.00032328,4]
[328215846,1717066254861,-500.0,0.00032328,4]
[328215847,1717066254870,-2108.12,0.00032328,4]
[328215848,1717066254880,-500.0,0.00032328,4]
[328215849,1717066254889,-546.06,0.00032328,4]
[328215850,1717066254898,-972.1,0.00032328,4]
[328215851,1717066254908,-500.0,0.00032328,4]
[328215852,1717066254917,-534.28957652,0.00032328,4]
[328215853,1717066254926,-500.0,0.00032328,4]
[328215854,1717066254935,-628.51,0.00032328,4]
[328215855,1717066254944,-500.0,0.00032328,4]
[328215856,1717066254953,-363.01909644,0.00032328,4]
[328215857,1717066254962,-322.64319578,0.00032344,7]
[328215858,1717066254972,-795.34918113,0.00032399,7]
[328215859,1717066254982,-795.34918113,0.0003242,7]
[328215860,1717066254991,-160.0,0.00032431,4]
[328215861,1717066255000,-164.09763035,0.00032431,5]
[328215862,1717066255010,-291.9275846,0.00032462,2]
[328215863,1717066255019,-153.0,0.00032462,2]
[328215864,1717066255028,-322.64319578,0.00032485,7]
[328215865,1717066255038,-5000.0,0.000325,2]
[328215866,1717066255046,-176.0,0.00032592,7]
[328215867,1717066255055,-799.15,0.00032602,4]
[328215868,1717066255064,-245.51934997,0.00032602,4]
[328215869,1717066255073,-500.0,0.00032602,2]
[328215870,1717066255082,-500.0,0.00032602,4]
[328215871,1717066255092,-500.0,0.00032602,4]
[328215872,1717066255101,-500.0,0.00032602,4]
[328215873,1717066255110,-853.12,0.00032602,4]
[328215874,1717066255119,-1627.207917,0.00032602,4]
[328215875,1717066255215,-151.0,0.0002879,2]
[328215876,1717066255225,-112.592083,0.00032602,4]
[328215877,1717066255234,-196.57574031,0.00032602,4]
[328215878,1717066255243,-500.0,0.00032602,4]
[328215879,1717066255253,-409.09310635,0.00032602,4]
[328215880,1717066255356,137.37306172,9.9e-05,2]
[328215887,1717067233158,-156.71552459,9.9e-05,2]
[328215888,1717067233178,-155.16042844,9.9e-05,2]
[328215889,1717067233197,-1112.9409253,9.9e-05,2]
[328215890,1717067233218,-1279.86056259,0.00022598,2]
[328215891,1717067233238,-254.03417928,0.00022599,2]
[328215892,1717067233260,-153.53448069,0.000226,2]
[328215899,1717067351149,-273.37336231,9.9e-05,2]
[328215900,1717067356399,273.37336231,9.9e-05,2]
[328215987,1717067432903,-150.0,0.00020499,2]
[328215989,1717067432913,-254.03417928,0.00022598,2]
[328215991,1717067432922,-16921.26699671,0.00022598,2]
[328216186,1717067438561,-997.51259947,0.00022598,2]
[328216202,1717067442483,-685.8,0.00022597,2]
[328216229,1717067444263,-1316.21457597,0.00022597,2]
[328216232,1717067444275,-855.0,0.00022597,2]
[328216234,1717067444297,-10.30475434,0.00022597,2]
[328216238,1717067446317,-254.03417928,0.00022596,2]
[328216240,1717067446326,-3487.12231294,0.00022597,2]
[328216242,1717067467361,154.87609912,9.999e-05,2]
[328216243,1717067467570,179.2244186,9.999e-05,2]
[328216244,1717067469728,285.51280709,9.999e-05,2]